fUSD/lending_fUSD_20251227
["ID","MTS","AMOUNT","RATE_DAILY","PERIOD"]
[399906569,1766847033444,-500.0,0.00016799,2]
[399906570,1766847033454,-500.0,0.00016799,2]
[399906571,1766847033464,-500.0,0.00016799,2]
[399906572,1766847033474,-500.0,0.00016799,2]
[399906573,1766847033485,-500.0,0.00016799,2]
[399906574,1766847033494,-347.09489413,0.00016799,2]
[399906575,1766847033505,-500.0,0.00016799,2]
[399906576,1766847033514,-500.0,0.00016799,2]
[399906577,1766847033524,-500.0,0.00016799,2]
[399906578,1766847033534,-500.0,0.00016799,2]
[399906579,1766847033544,-500.0,0.00016799,2]
[399906580,1766847033553,-500.0,0.00016799,2]
[399906581,1766847033563,-500.0,0.00016799,2]
[399906582,1766847033573,-500.0,0.00016799,2]
[399906583,1766847033582,-500.0,0.00016799,2]
[399906584,1766847033591,-500.0,0.00016799,2]
[399906585,1766847033601,-500.0,0.00016799,2]
[399906586,1766847033611,-500.0,0.00016799,2]
[399906587,1766847033621,-500.0,0.00016799,2]
[399906588,1766847033631,-500.0,0.00016799,2]
[399906589,1766847033641,-500.0,0.00016799,2]
[399906590,1766847033650,-500.0,0.00016799,2]
[399906591,1766847033660,-500.0,0.00016799,2]
[399906592,1766847033674,-500.0,0.00016799,2]
[399906593,1766847033684,-500.0,0.00016799,2]
[399906594,1766847033694,-500.0,0.00016799,2]
[399906595,1766847033703,-169.99763055,0.00016799,2]
[399906596,1766847033714,-500.0,0.00016799,2]
[399906597,1766847033724,-500.0,0.00016799,2]
[399906598,1766847033734,-500.0,0.00016799,2]
[399906599,1766847033745,-500.0,0.00016799,2]
[399906600,1766847033755,-500.0,0.00016799,2]
[399906601,1766847033765,-500.0,0.00016799,2]
[399906602,1766847033775,-500.0,0.00016799,2]
[399906603,1766847033785,-176.81122822,0.00016799,2]
[399906604,1766847033795,-500.00000001,0.00016799,2]
[399906605,1766847033805,-500.0,0.00016799,2]
[399906606,1766847033815,-500.0,0.00016799,2]
[399906607,1766847033825,-500.0,0.00016799,2]
[399906608,1766847033835,-500.0,0.00016799,2]
[399906609,1766847033845,-500.0,0.00016799,2]
[399906610,1766847033854,-500.0,0.00016799,2]
[399906611,1766847033864,-500.0,0.00016799,2]
[399906612,1766847033874,-500.0,0.00016799,2]
[399906613,1766847033884,-500.0,0.00016799,2]
[399906614,1766847033894,-500.0,0.00016799,2]
[399906615,1766847033903,-500.0,0.00016799,2]
[399906616,1766847033914,-500.0,0.00016799,2]
[399906617,1766847033924,-500.0,0.00016799,2]
[399906618,1766847033934,-500.0,0.00016799,2]
[399906619,1766847033944,-252.52044963,0.00016799,2]
[399906620,1766847033953,-2447.0,0.000168,2]
[399906621,1766847033963,-220482.45084567,0.000168,2]
[399906622,1766847033978,-2305.94167821,0.000168,2]
[399906623,1766847033990,-83788.51229337,0.000168,2]
[399906624,1766847034003,-84255.60751455,0.000168,2]
[399906625,1766847034014,-1254.41808677,0.000168,2]
[399906626,1766847034030,-1422.63899574,0.000168,2]
[399906627,1766847034042,-457.25952438,0.000168,2]
[399906628,1766847034061,-426.83436047,0.000168,2]
[399906629,1766847037458,-480.14513121,0.000168,2]
[399906630,1766847037628,-10000.0,0.000168,2]
[399906631,1766847037640,-19845.24128045,0.000168,2]
[399906632,1766847037651,-5778.20325848,0.000168,2]
[399906640,1766847039545,-356.68236483,0.000168,2]
[399906641,1766847039557,-644.38,0.000168,2]
[399906642,1766847039611,-396.71618048,0.000168,2]
[399906643,1766847039915,-427.39638274,0.000168,2]
[399906644,1766847039963,-763.45759774,0.000168,2]
[399906645,1766847039974,-7916.3040862,0.000168,2]
[399906646,1766847039985,-523.34287504,0.000168,2]
[399906647,1766847040001,-132892.10889227,0.000168,2]
[399906656,1766847043322,-5559.86373034,0.000168,2]
[399906657,1766847044193,-166.66,0.00016373,2]
[399906658,1766847044203,-166.66,0.00016717,2]
[399906659,1766847044215,-6034.68,0.000168,2]
[399906660,1766847044254,-345.69,0.000168,2]
[399906661,1766847044266,-697.84127674,0.000168,2]
[399906663,1766847044278,-11486.79525493,0.000168,2]
[399906666,1766847045842,-151.0,0.00016496,2]
[399906667,1766847045852,-610.86263737,0.000168,2]
[399906668,1766847045958,-13716.2766494,0.000168,2]
[399906740,1766848231621,-195.0,0.00015176,2]
[399906741,1766848231633,-600.0,0.00015176,2]
[399906742,1766848231643,-195.0,0.00015176,2]
[399906743,1766848231656,-1210.42617285,0.00015177,2]
[399906744,1766848231669,-1289.57382715,0.00015177,2]
[399906745,1766848231681,-300.0,0.00015177,2]
[399906746,1766848231692,-60.42617285,0.00015179,2]
[399906747,1766848231710,-539.57382715,0.00015179,2]
[399906748,1766848231721,-272.06899131,0.00015179,2]
[399906749,1766848231734,-327.93100869,0.00015179,2]
[399906750,1766848231745,-549.42899131,0.00015187,2]
[399906751,1766848231759,-650.57100869,0.00015187,2]
[399906752,1766848231770,-300.0,0.00015187,2]
[399906753,1766848231785,-1159.07530629,0.00015187,2]
[399906754,1766848231799,-40.92469371,0.00015187,2]
[399906755,1766848231810,-300.0,0.00015187,2]
[399906756,1766848231821,-2059.07530629,0.00015188,2]
[399906757,1766848231836,-440.92469371,0.00015188,2]
[399906758,1766848231847,-2500.0,0.00015188,2]
[399906759,1766848231859,-2500.0,0.00015188,2]
[399906760,1766848231870,-195.0,0.00015192,2]
[399906761,1766848231881,-300.0,0.00015214,2]
[399906762,1766848231892,-300.0,0.00015214,2]
[399906763,1766848231904,-300.0,0.00015214,2]
[399906764,1766848231916,-500.0,0.00015246,2]
[399906765,1766848231927,-150.0,0.00015251,2]
[399906766,1766848231938,-578.20924308,0.00015279,2]
[399906768,1766848231949,-334.5472959,0.00015279,2]
[399906769,1766848231960,-200.0,0.00015279,2]
[399906770,1766848231971,-207.4,0.00015279,2]
[399906771,1766848231983,-215.0738,0.00015279,2]
[399906772,1766848231994,-232.7415603,0.00015279,2]
[399906773,1766848232006,-1000.0,0.00015364,2]
[399906774,1766848232017,-1020.24,0.00015392,2]
[399906775,1766848232029,-200.0,0.00015435,2]
[399906776,1766848232040,-500.0,0.00015644,2]
[399906777,1766848232051,-999.0,0.00015802,3]
[399906778,1766848232062,-12305.42938223,0.00015873,2]
[399906779,1766848232075,-500.0,0.00015873,2]
[399906780,1766848232088,-2455.1720478,0.00015873,2]
[399906781,1766848232101,-279.26125715,0.00015873,2]
[399906782,1766848237695,-252.20002668,0.00015872,2]
[399906783,1766848237707,-247.79997332,0.00015872,2]
[399906784,1766848237716,-187.62379164,0.00015872,2]
[399906785,1766848237726,-227.74709481,0.00015872,2]
[399906786,1766848237736,-184.80669365,0.00015872,2]
[399906787,1766848237747,-59.27806821,0.00015872,2]
[399906788,1766848237756,-277.25200745,0.00015872,2]
[399906789,1766848237766,-500.0,0.00015872,2]
[399906790,1766848237776,-500.0,0.00015872,2]
[399906791,1766848237785,-500.0,0.00015872,2]
[399906792,1766848237795,-500.0,0.00015872,2]
[399906793,1766848237805,-500.0,0.00015872,2]
[399906794,1766848237815,-500.0,0.00015872,2]
[399906795,1766848237824,-500.0,0.00015872,2]
[399906796,1766848237834,-500.0,0.00015872,2]
[399906797,1766848237843,-500.0,0.00015872,2]
[399906798,1766848237853,-500.0,0.00015872,2]
[399906799,1766848237862,-500.0,0.00015872,2]
[399906800,1766848237871,-500.0,0.00015872,2]
[399906801,1766848237880,-500.0,0.00015872,2]
[399906802,1766848237890,-500.0,0.00015872,2]
[399906803,1766848237899,-500.0,0.00015872,2]
[399906804,1766848237908,-150.00000001,0.00015872,2]
[399906805,1766848237918,-7814.71850653,0.00015873,2]
[399906806,1766848237930,-304.0,0.00015873,2]
[399906807,1766848237948,-28358.10237597,0.00015873,2]
[399906808,1766848237960,-500.0,0.00015873,2]
[399906809,1766848237973,-706.55591932,0.00015873,2]
[399906815,1766848239778,-2911.12206947,0.00015873,2]
[399906816,1766848239845,-12793.96875002,0.00015873,2]
[399906817,1766848239857,-1106.03124998,0.00015873,2]
[399906818,1766848239868,-8729.85355906,0.00015873,2]
[399906819,1766848239879,-500.0,0.00015873,2]
[399906820,1766848239890,-420.86114321,0.00015873,2]
[399906821,1766848239901,-3391.7295467,0.00015873,2]
[399906822,1766848239913,-922.18333418,0.00015873,2]
[399906823,1766848239928,-769.35239189,0.00015873,2]
[399906824,1766848239939,-473.58350334,0.00015873,2]
[399906825,1766848239951,-417.62621323,0.00015873,2]
[399906826,1766848239962,-277.7262015,0.00015873,2]
[399906827,1766848240216,-473.93335833,0.00015873,2]
[399906839,1766848243724,-393.39206397,0.00015873,2]
[399906840,1766848243736,-1797.61271401,0.00015873,2]
[399906841,1766848244927,-17540.0,0.00015873,2]
[399906842,1766848244939,-2584.11823244,0.00015873,2]
[399906843,1766848244951,-261.98000005,0.00015873,2]
[399906844,1766848244963,-688.7483796,0.00015873,2]
[399906845,1766848244975,-512.6900035,0.00015873,2]
[399906847,1766848245785,-417.70026215,0.00015873,2]
[399906848,1766848245797,-379.12940536,0.00015873,2]
[399906849,1766848246018,-612.84989598,0.00015873,2]
[399906850,1766848246030,-327.410967,0.00015873,2]
[399906851,1766848246078,-657.92929977,0.00015873,2]
[399906924,1766849388527,3016.66142445,0.00013427,2]
[399906925,1766849396255,3016.66142445,0.00013426,2]
[399906926,1766849398553,-152.98911329,0.00013426,2]
[399906927,1766849400960,-286.727451,0.00013426,2]
[399906930,1766849405900,-367.68868499,0.00013426,2]
[399906931,1766849407376,-409.13403469,0.00013426,2]
[399906932,1766849409517,-279.67423165,0.00013426,2]
[399906933,1766849414522,-173.30744831,0.00013426,2]
[399906934,1766849416991,-175.91912486,0.00013426,2]
[399906935,1766849422483,-234.69882905,0.00013426,2]
[399906936,1766849425196,-330.56951011,0.00013426,2]
[399906937,1766849430804,-158.2394595,0.00013426,2]
[399906938,1766849431815,-1204.23765561,0.00013426,2]
[399906942,1766849431844,-458.86841978,0.00013426,2]
[399906945,1766849431874,-2319.58557692,0.00013426,2]
[399906946,1766849431886,-431.69903579,0.00013426,2]
[399906947,1766849431897,-300.0,0.00013426,2]
[399906948,1766849431907,-67.51096421,0.00013426,2]
[399906949,1766849431925,-875.88927357,0.00013426,2]
[399906950,1766849431946,-256.59976222,0.00013426,2]
[399906951,1766849431955,-4084.55441778,0.00013427,2]
[399906952,1766849431967,-841.05406,0.00013427,2]
[399906953,1766849431979,-801.98263016,0.00013427,2]
[399906954,1766849432045,-781.98694337,0.00013427,2]
[399906955,1766849432058,-473.76052424,0.00013427,2]
[399906956,1766849432069,-354.54259613,0.00014196,2]
[399906957,1766849432079,-300.0,0.00014718,2]
[399906958,1766849432090,-195.0,0.00014768,2]
[399906959,1766849432100,-600.0,0.00014768,2]
[399906960,1766849432110,-250.0,0.00014768,2]
[399906961,1766849432121,-1067.08121035,0.00014769,2]
[399906962,1766849432133,-132.91878965,0.00014769,2]
[399906963,1766849432143,-195.0,0.00015015,2]
[399906965,1766849432153,-250.0,0.00015087,2]
[399906967,1766849432163,-195.0,0.00015226,2]
[399906969,1766849432173,-458.28262606,0.00015232,2]
[399906970,1766849432187,-564.12737394,0.00015232,2]
[399906971,1766849432197,-159.78,0.00015328,2]
[399906972,1766849432207,-200.0,0.0001554,2]
[399906973,1766849432217,-474.15169059,0.00015615,2]
[399906977,1766849437880,-125.84830941,0.00015615,2]
[399906978,1766849437890,-2500.0,0.00015615,2]
[399906979,1766849437901,-246.8264886,0.00015672,2]
[399906980,1766849437911,-823.88104531,0.00015672,2]
[399906981,1766849437921,-197.72643171,0.00015672,2]
[399906982,1766849437932,-490.5831188,0.00015672,2]
[399906983,1766849437942,-594.2092946,0.00015673,2]
[399906984,1766849437952,-196.8,0.0001569,2]
[399906985,1766849437962,-151.0,0.0001576,2]
[399906986,1766849437972,-151.0,0.0001576,2]
[399906987,1766849437982,-300.0,0.00015761,2]
[399906988,1766849437991,-500.0,0.00015762,2]
[399906989,1766849438004,-697.0,0.00015762,2]
[399906990,1766849438014,-500.0,0.00015762,2]
[399906991,1766849438025,-344.05014197,0.00015762,2]
[399906992,1766849438035,-299.12142114,0.00015762,2]
[399906993,1766849438045,-437.09131088,0.00015762,2]
[399906994,1766849438056,-500.0,0.00015762,2]
[399906995,1766849438067,-500.0,0.00015762,2]
[399906996,1766849438076,-500.0,0.00015762,2]
[399906997,1766849438087,-500.0,0.00015762,2]
[399906998,1766849438097,-500.0,0.00015762,2]
[399906999,1766849438107,-500.0,0.00015762,2]
[399907000,1766849438118,-500.0,0.00015762,2]
[399907001,1766849438128,-500.0,0.00015762,2]
[399907002,1766849438139,-500.0,0.00015762,2]
[399907003,1766849438149,-500.0,0.00015762,2]
[399907004,1766849438161,-500.0,0.00015762,2]
[399907005,1766849438171,-500.0,0.00015762,2]
[399907006,1766849438181,-500.0,0.00015762,2]
[399907007,1766849438191,-500.0,0.00015762,2]
[399907009,1766849438201,-500.0,0.00015762,2]
[399907011,1766849438211,-500.0,0.00015762,2]
[399907012,1766849438220,-500.0,0.00015762,2]
[399907013,1766849438230,-500.0,0.00015762,2]
[399907014,1766849438241,-500.0,0.00015762,2]
[399907015,1766849438251,-500.0,0.00015762,2]
[399907016,1766849438260,-500.0,0.00015762,2]
[399907017,1766849438270,-314.21282835,0.00015762,2]
[399907018,1766849438279,-500.0,0.00015762,2]
[399907019,1766849438290,-500.0,0.00015762,2]
[399907020,1766849438300,-500.0,0.00015762,2]
[399907021,1766849438310,-500.0,0.00015762,2]
[399907022,1766849438320,-500.0,0.00015762,2]
[399907023,1766849438330,-500.0,0.00015762,2]
[399907024,1766849438339,-500.0,0.00015762,2]
[399907025,1766849438350,-500.0,0.00015762,2]
[399907026,1766849438359,-500.0,0.00015762,2]
[399907027,1766849438369,-500.0,0.00015762,2]
[399907028,1766849438390,-500.0,0.00015762,2]
[399907029,1766849438401,-500.0,0.00015762,2]
[399907030,1766849438411,-500.0,0.00015762,2]
[399907031,1766849438421,-500.0,0.00015762,2]
[399907032,1766849438432,-500.0,0.00015762,2]
[399907033,1766849438442,-500.0,0.00015762,2]
[399907034,1766849438734,-500.0,0.00015762,2]
[399907035,1766849438747,-500.0,0.00015762,2]
[399907036,1766849438758,-500.0,0.00015762,2]
[399907037,1766849438768,-500.0,0.00015762,2]
[399907038,1766849438779,-576.17096984,0.00015762,2]
[399907039,1766849438789,-500.00000001,0.00015762,2]
[399907040,1766849438803,-200169.25313375,0.00015763,2]
[399907041,1766849438853,-1000.0,0.00015763,2]
[399907042,1766849438890,-4469.34245051,0.00015763,2]
[399907043,1766849438903,-1055.87586482,0.00015763,2]
[399907044,1766849438916,-2802.14483546,0.00015763,2]
[399907045,1766849438928,-873.29,0.00015763,2]
[399907046,1766849438960,-1064.84122969,0.00015763,2]
[399907052,1766849440056,-4257.78598744,0.00015763,2]
[399907053,1766849440167,-8040.49557726,0.00015763,2]
[399907054,1766849440179,-194010.82529131,0.00015763,2]
[399907055,1766849440353,-2993.80498,0.00015763,2]
[399907056,1766849440365,-645.04788305,0.00015763,2]
[399907057,1766849440389,-826.28059818,0.00015763,2]
[399907058,1766849440402,-11055.59701595,0.00015763,2]
[399907059,1766849440414,-1239.43669989,0.00015763,2]
[399907063,1766849445938,-58167.34076784,0.00015763,2]
[399907064,1766849445959,-3607.02658723,0.00015763,2]
[399907065,1766849445981,-82732.69066058,0.00015763,2]
[399907066,1766849446003,-466.81370507,0.00015763,2]
[399907067,1766849446026,-23916.42488506,0.00015763,2]
[399907068,1766849446038,-12110.43279361,0.00015763,2]
[399907069,1766849446149,-9789.58160045,0.00015763,2]
[399907070,1766849446161,-291.637896,0.00015763,2]
[399907071,1766849446173,-1460.86549932,0.00015763,2]
[399907073,1766849446663,-1988.8604776,0.00015763,2]
[399907074,1766849446681,-1137.79536712,0.00015763,2]
[399907075,1766849446694,-7569.95305312,0.00015763,2]
[399907076,1766849446782,-5423.5,0.00015763,2]
[399907077,1766849446794,-735.24608787,0.00015763,2]
[399907078,1766849446806,-619.94646908,0.00015763,2]
[399907079,1766849446818,-2979.06507186,0.00015763,2]
[399907080,1766849446830,-352498.79753088,0.00015763,2]
[399907081,1766849446840,-2500.0,0.00015773,2]
[399907082,1766849446851,-12430.39442719,0.00015773,2]
[399907083,1766849446861,-253.42791438,0.000158,2]
[399907084,1766849446871,-349.2265733,0.00015817,2]
[399907085,1766849446882,-490.58311879,0.00015844,2]
[399907086,1766849446892,-219.08,0.00015863,2]
[399907087,1766849446902,-500.0,0.00015863,2]
[399907088,1766849446912,-574.12855637,0.00015863,2]
[399907089,1766849446921,-500.0,0.00015863,2]
[399907090,1766849446931,-151.0,0.00015863,2]
[399907091,1766849446948,-151.0,0.00015863,2]
[399907092,1766849446958,-500.0,0.00015863,2]
[399907093,1766849446968,-151.0,0.00015863,2]
[399907094,1766849446977,-151.0,0.00015863,2]
[399907095,1766849446987,-151.0,0.00015863,2]
[399907096,1766849446996,-151.0,0.00015863,2]
[399907097,1766849447006,-151.0,0.00015863,2]
[399907098,1766849447016,-151.0,0.00015863,2]
[399907099,1766849447025,-250.0,0.00015863,2]
[399907100,1766849447035,-151.0,0.00015863,2]
[399907101,1766849447045,-250.0,0.00015863,2]
[399907102,1766849447055,-250.0,0.00015863,2]
[399907103,1766849447064,-250.0,0.00015863,2]
[399907104,1766849447075,-250.0,0.00015863,2]
[399907105,1766849447084,-250.0,0.00015863,2]
[399907106,1766849447094,-250.0,0.00015863,2]
[399907107,1766849447103,-250.0,0.00015863,2]
[399907108,1766849447113,-250.0,0.00015863,2]
[399907109,1766849447123,-190.95582929,0.00015863,2]
[399907110,1766849447133,-250.0,0.00015863,2]
[399907111,1766849447143,-250.0,0.00015863,2]
[399907112,1766849447153,-250.0,0.00015863,2]
[399907113,1766849447162,-642.94,0.00015863,2]
[399907114,1766849447172,-1255.157,0.00015872,2]
[399907115,1766849447182,-500.0,0.00015872,2]
[399907116,1766849447193,-8524.5018209,0.00015873,2]
[399907117,1766849447203,-151.0,0.00015906,2]
[399907118,1766849447213,-151.0,0.00015935,2]
[399907119,1766849447223,-151.0,0.00015935,2]
[399907120,1766849447233,-500.0,0.00015973,2]
[399907121,1766849447242,-267.17825465,0.0001599,2]
[399907122,1766849447252,-250.0,0.00016,2]
[399907123,1766849447262,-4750.90686516,0.00016,4]
[399907124,1766849447274,-333.647801,0.00016,4]
[399907148,1766849546531,-500.0,0.00014373,2]
[399907149,1766849546559,-250.0,0.00015186,2]
[399907150,1766849546590,-1004.125,0.0001568,2]
[399907151,1766849570254,-250.0,0.00015737,2]
[399907152,1766849570279,-151.0,0.0001576,2]
[399907153,1766849570310,-828844.0,0.00015763,2]
[399907159,1766849814808,193.61,0.00030137,120]
[399907193,1766850632066,-388.14,0.00013699,2]
[399907194,1766850632076,-724.0,0.00014372,2]
[399907195,1766850632086,-300.0,0.00014372,2]
[399907196,1766850632096,-1200.0,0.00014372,2]
[399907197,1766850632107,-500.8778337,0.00014373,2]
[399907198,1766850632122,-500.0,0.00014373,2]
[399907199,1766850632132,-500.0,0.00014373,2]
[399907200,1766850632142,-500.4020238,0.00014373,2]
[399907201,1766850632152,-500.0,0.00014373,2]
[399907202,1766850632163,-500.0,0.00014373,2]
[399907203,1766850632173,-502.34827947,0.00014373,2]
[399907204,1766850632183,-333.88776573,0.00014373,2]
[399907205,1766850632194,-595.43,0.00014373,2]
[399907206,1766850632204,-1000.0,0.00014575,2]
[399907207,1766850632214,-166.66,0.00014598,2]
[399907208,1766850632224,-467.2040973,0.00014647,2]
[399907209,1766850632236,-128.2259027,0.00014647,2]
[399907210,1766850632246,-166.66,0.00014906,2]
[399907211,1766850632256,-205.78,0.00014912,2]
[399907212,1766850632267,-595.43,0.00014921,2]
[399907213,1766850632277,-470.2154613,0.00014932,2]
[399907214,1766850632289,-29.7845387,0.00014932,2]
[399907215,1766850632299,-1500.0,0.00015013,2]
[399907216,1766850632309,-199.98,0.00015016,2]
[399907217,1766850632319,-152.76,0.00015059,2]
[399907218,1766850632330,-250.0,0.00015068,2]
[399907219,1766850632339,-558.2664013,0.00015195,2]
[399907220,1766850632371,-37.1635987,0.00015195,2]
[399907221,1766850632381,-166.66,0.00015213,2]
[399907222,1766850632390,-113.68470122,0.00015288,2]
[399907223,1766850632402,-36.31529879,0.00015288,2]
[399907224,1766850632412,-150.0,0.00015288,2]
[399907225,1766850632421,-150.0,0.00015288,2]
[399907226,1766850632431,-150.0,0.00015288,2]
[399907227,1766850632443,-150.0,0.00015288,2]
[399907228,1766850632453,-150.0,0.00015288,2]
[399907229,1766850632463,-150.0,0.00015288,2]
[399907230,1766850632473,-150.0,0.00015288,2]
[399907231,1766850632487,-150.0,0.00015288,2]
[399907232,1766850632497,-150.0,0.00015288,2]
[399907233,1766850632507,-150.0,0.00015288,2]
[399907234,1766850632517,-150.0,0.00015288,2]
[399907235,1766850632527,-150.0,0.00015288,2]
[399907236,1766850632538,-150.0,0.00015288,2]
[399907237,1766850632548,-150.0,0.00015288,2]
[399907238,1766850632558,-150.0,0.00015288,2]
[399907239,1766850632569,-150.0,0.00015344,2]
[399907240,1766850632578,-150.0,0.00015365,2]
[399907242,1766850632588,-150.0,0.00015373,2]
[399907244,1766850632598,-150.0,0.00015401,2]
[399907246,1766850632607,-150.0,0.00015401,2]
[399907248,1766850632617,-150.0,0.00015409,2]
[399907249,1766850632627,-150.0,0.00015429,2]
[399907250,1766850632636,-150.0,0.00015442,2]
[399907251,1766850632646,-150.0,0.00015458,2]
[399907252,1766850632656,-150.0,0.00015458,2]
[399907253,1766850632667,-150.0,0.00015458,2]
[399907254,1766850632677,-595.43,0.00015468,2]
[399907255,1766850632688,-720.89591462,0.00015471,2]
[399907256,1766850632698,-163.52770627,0.00015471,2]
[399907257,1766850632708,-150.0,0.00015514,2]
[399907258,1766850632717,-150.0,0.00015514,2]
[399907259,1766850632728,-150.0,0.00015519,2]
[399907260,1766850632738,-166.66,0.0001552,2]
[399907261,1766850632748,-150.0,0.0001553,2]
[399907262,1766850632757,-150.0,0.00015542,2]
[399907263,1766850632768,-4005.45,0.00015556,2]
[399907264,1766850632778,-4005.45,0.00015556,2]
[399907265,1766850632787,-4005.45,0.00015556,2]
[399907266,1766850632797,-4005.45,0.00015556,2]
[399907267,1766850632807,-4005.45,0.00015556,2]
[399907268,1766850632816,-151.0,0.00015563,2]
[399907269,1766850632827,-254.40428733,0.00015565,2]
[399907270,1766850632837,-500.0,0.00015565,2]
[399907271,1766850632851,-110771.6117632,0.00015566,2]
[399907272,1766850632863,-4837.61447808,0.00015566,2]
[399907273,1766850633062,-340.03679993,0.00015565,2]
[399907274,1766850633084,-1042.56080403,0.00015566,2]
[399907275,1766850633096,-1303.75,0.00015566,2]
[399907276,1766850638129,-415.67100534,0.00015565,2]
[399907277,1766850638139,-2412.42775389,0.00015566,2]
[399907278,1766850638151,-2169.18029496,0.00015566,2]
[399907279,1766850638163,-36659.22978072,0.00015566,2]
[399907280,1766850638175,-797.15215664,0.00015566,2]
[399907281,1766850638187,-871.59133588,0.00015566,2]
[399907282,1766850638199,-1583.41443103,0.00015566,2]
[399907283,1766850638215,-27449.95832474,0.00015566,2]
[399907284,1766850638227,-1157.83394336,0.00015566,2]
[399907285,1766850638239,-8208.13722735,0.00015566,2]
[399907286,1766850638251,-1323.45921772,0.00015566,2]
[399907287,1766850638371,-404.68821727,0.00015566,2]
[399907288,1766850638383,-1017.64549955,0.00015566,2]
[399907289,1766850638396,-955.88436296,0.00015566,2]
[399907290,1766850638407,-878.59516704,0.00015566,2]
[399907291,1766850638419,-506.24704117,0.00015566,2]
[399907292,1766850638431,-1549.3014806,0.00015566,2]
[399907293,1766850638443,-499.21428765,0.00015566,2]
[399907294,1766850638455,-600.0,0.00015566,2]
[399907295,1766850638467,-2730.54381795,0.00015566,2]
[399907296,1766850638479,-431.69598331,0.00015566,2]
[399907329,1766850640250,-269.80509028,0.00015566,2]
[399907330,1766850640263,-3449.40087775,0.00015566,2]
[399907331,1766850640276,-493.65095226,0.00015566,2]
[399907332,1766850640290,-405.0,0.00015566,2]
[399907333,1766850640302,-1468.77737367,0.00015566,2]
[399907334,1766850640315,-3531.61320209,0.00015566,2]
[399907335,1766850640331,-3046.11699076,0.00015566,2]
[399907336,1766850640343,-10279.88414971,0.00015566,2]
[399907337,1766850640355,-19138.23941,0.00015566,2]
[399907338,1766850640366,-2447.56425142,0.00015566,2]
[399907339,1766850640382,-8117.35424924,0.00015566,2]
[399907340,1766850640394,-279.20197547,0.00015566,2]
[399907341,1766850640405,-7797.00312763,0.00015566,2]
[399907365,1766850646572,-2381.50162742,0.00015566,2]
[399907366,1766850646583,-297.68314574,0.00015566,2]
[399907370,1766850647973,-373.49586585,0.00015566,2]
[399907371,1766850647986,-416.30793719,0.00015566,2]
[399907372,1766850647997,-343.53915486,0.00015566,2]
[399907373,1766850648009,-2848.04046362,0.00015566,2]
[399907374,1766850648020,-28301.88297644,0.00015566,2]
[399907375,1766850648031,-2610.0,0.00015566,2]
[399907376,1766850648055,-1263.83393731,0.00015566,2]
[399907377,1766850648069,-443.4506406,0.00015566,2]
[399907378,1766850648123,-487922.36967302,0.00015566,2]
[399907379,1766850648138,-411.05018221,0.00015566,2]
[399907380,1766850648149,-603.2142,0.00015566,2]
[399907392,1766851032150,165.87,7.32e-05,2]
[399907397,1766851664039,500.0,0.000202,30]
[399907401,1766851762737,150.0,0.00030137,120]
[399907415,1766851832184,-1701.873069,0.00014244,2]
[399907416,1766851832209,-153.36135413,0.00014317,2]
[399907417,1766851832220,-200.0,0.00014353,2]
[399907418,1766851832230,-500.0,0.00014373,2]
[399907419,1766851832240,-394.76557685,0.00014373,2]
[399907420,1766851832253,-105.23442315,0.00014373,2]
[399907421,1766851832263,-300.0,0.0001438,2]
[399907422,1766851832273,-300.0,0.0001438,2]
[399907423,1766851832285,-480.0,0.0001438,2]
[399907424,1766851832296,-157.34,0.00014381,2]
[399907425,1766851832306,-2101.69303605,0.00014381,2]